fUSD/lending_fUSD_20240419
["ID","MTS","AMOUNT","RATE_DAILY","PERIOD"]
[322912678,1713495041707,-330.25132769,0.00016438,2]
[322912679,1713495041716,-500.0,0.00016438,2]
[322912680,1713495041726,-500.0,0.00016438,2]
[322912681,1713495041735,-500.0,0.00016438,2]
[322912682,1713495041746,-500.0,0.00016438,2]
[322912683,1713495041756,-500.0,0.00016438,2]
[322912684,1713495041765,-500.0,0.00016438,2]
[322912685,1713495041775,-500.0,0.00016438,2]
[322912686,1713495041785,-500.0,0.00016438,2]
[322912687,1713495041794,-500.0,0.00016438,2]
[322912688,1713495041805,-500.0,0.00016438,2]
[322912689,1713495041814,-500.0,0.00016438,2]
[322912690,1713495041823,-500.0,0.00016438,2]
[322912691,1713495041833,-543.43269218,0.00016438,2]
[322912692,1713495041842,-500.0,0.00016438,2]
[322912693,1713495041852,-500.0,0.00016438,2]
[322912694,1713495041861,-1024.20030466,0.00016438,2]
[322912695,1713495041870,-500.0,0.00016438,2]
[322912696,1713495041880,-513.37773092,0.00016438,2]
[322912697,1713495041890,-500.0,0.00016438,2]
[322912698,1713495041902,-639.23,0.00016438,2]
[322912699,1713495041912,-1948.73,0.00016438,2]
[322912700,1713495041923,-500.0,0.00016438,2]
[322912701,1713495041932,-500.0,0.00016438,2]
[322912702,1713495041942,-281.26573708,0.00016438,2]
[322912703,1713495041951,-1262.77,0.00016438,2]
[322912704,1713495041960,-533.23,0.00016438,2]
[322912705,1713495041969,-500.0,0.00016438,2]
[322912706,1713495041978,-500.0,0.00016438,2]
[322912707,1713495041989,-500.0,0.00016438,2]
[322912708,1713495042002,-500.0,0.00016438,2]
[322912709,1713495042011,-1293.95,0.00016438,2]
[322912710,1713495042022,-500.0,0.00016438,2]
[322912711,1713495042031,-500.0,0.00016438,2]
[322912712,1713495042041,-150.24053961,0.00016438,2]
[322912713,1713495042050,-500.0,0.00016438,2]
[322912714,1713495042059,-963.97,0.00016438,2]
[322912715,1713495042068,-500.0,0.00016438,2]
[322912716,1713495042079,-946.22,0.00016438,2]
[322912717,1713495042088,-500.0,0.00016438,2]
[322912718,1713495042098,-923.85,0.00016438,2]
[322912719,1713495042108,-500.0,0.00016438,2]
[322912720,1713495042119,-500.0,0.00016438,2]
[322912721,1713495042128,-500.0,0.00016438,2]
[322912722,1713495042137,-500.0,0.00016438,2]
[322912723,1713495042150,-1013.61,0.00016438,2]
[322912724,1713495042159,-500.0,0.00016438,2]
[322912725,1713495042169,-500.0,0.00016438,2]
[322912726,1713495042178,-500.0,0.00016438,2]
[322912727,1713495042187,-1196.2,0.00016438,2]
[322912728,1713495042197,-500.0,0.00016438,2]
[322912729,1713495042206,-510.43,0.00016438,2]
[322912730,1713495042215,-500.0,0.00016438,2]
[322912731,1713495042223,-2848.18,0.00016438,2]
[322912732,1713495042232,-963.52,0.00016438,2]
[322912733,1713495042241,-500.0,0.00016438,2]
[322912734,1713495042250,-2080.05,0.00016438,2]
[322912735,1713495042259,-500.0,0.00016438,2]
[322912736,1713495042268,-554.46,0.00016438,2]
[322912737,1713495042277,-500.0,0.00016438,2]
[322912738,1713495042286,-500.0,0.00016438,2]
[322912739,1713495042295,-1639.09,0.00016438,2]
[322912740,1713495042304,-500.0,0.00016438,2]
[322912741,1713495042313,-1428.2,0.00016438,2]
[322912742,1713495042324,-500.0,0.00016438,2]
[322912743,1713495042333,-502.33,0.00016438,2]
[322912744,1713495042342,-500.0,0.00016438,2]
[322912745,1713495042351,-1439.41,0.00016438,2]
[322912746,1713495042360,-500.0,0.00016438,2]
[322912747,1713495042369,-500.0,0.00016438,2]
[322912748,1713495042379,-500.0,0.00016438,2]
[322912749,1713495042388,-1939.18,0.00016438,2]
[322912750,1713495042401,-500.0,0.00016438,2]
[322912751,1713495042413,-500.0,0.00016438,2]
[322912752,1713495042422,-500.0,0.00016438,2]
[322912753,1713495042430,-500.0,0.00016438,2]
[322912754,1713495042439,-377.02,0.00016438,2]
[322912755,1713495042448,-500.0,0.00016438,2]
[322912756,1713495042457,-500.0,0.00016438,2]
[322912757,1713495042466,-482.08303492,0.00016438,2]
[322912758,1713495042475,-500.0,0.00016438,2]
[322912759,1713495042484,-1235.71,0.00016438,2]
[322912760,1713495042493,-500.0,0.00016438,2]
[322912762,1713495042502,-617.48,0.00016438,2]
[322912763,1713495042511,-1108.77,0.00016438,2]
[322912765,1713495042520,-500.0,0.00016438,2]
[322912766,1713495042529,-500.0,0.00016438,2]
[322912767,1713495042538,-500.0,0.00016438,2]
[322912768,1713495042548,-500.0,0.00016438,2]
[322912769,1713495042557,-500.0,0.00016438,2]
[322912770,1713495042566,-1056.81,0.00016438,2]
[322912771,1713495042576,-892.62,0.00016438,2]
[322912772,1713495042585,-500.0,0.00016438,2]
[322912773,1713495042594,-500.0,0.00016438,2]
[322912774,1713495042603,-500.0,0.00016438,2]
[322912775,1713495042613,-500.0,0.00016438,2]
[322912776,1713495042622,-500.0,0.00016438,2]
[322912777,1713495042631,-500.0,0.00016438,2]
[322912778,1713495042642,-500.0,0.00016438,2]
[322912779,1713495042651,-538.69436313,0.00016438,2]
[322912781,1713495042661,-500.0,0.00016438,2]
[322912783,1713495042670,-1366.8,0.00016438,2]
[322912785,1713495042679,-1958.79,0.00016438,2]
[322912786,1713495042689,-2071.24,0.00016438,2]
[322912787,1713495042698,-724.66,0.00016438,2]
[322912789,1713495042708,-1799.43,0.00016438,2]
[322912791,1713495042717,-500.0,0.00016438,2]
[322912792,1713495042726,-500.0,0.00016438,2]
[322912793,1713495042736,-685.43,0.00016438,2]
[322912794,1713495042745,-500.0,0.00016438,2]
[322912795,1713495042755,-500.0,0.00016438,2]
[322912796,1713495042764,-500.0,0.00016438,2]
[322912797,1713495042774,-500.0,0.00016438,2]
[322912798,1713495042783,-581.69,0.00016438,2]
[322912799,1713495042793,-676.93,0.00016438,2]
[322912800,1713495042803,-969.31,0.00016438,2]
[322912801,1713495042812,-2498.61,0.00016438,2]
[322912802,1713495042821,-500.0,0.00016438,2]
[322912803,1713495042831,-1774.79,0.00016438,2]
[322912804,1713495042840,-500.0,0.00016438,2]
[322912805,1713495042849,-2467.74,0.00016438,2]
[322912806,1713495042858,-500.0,0.00016438,2]
[322912808,1713495042867,-563.61,0.00016438,2]
[322912809,1713495042877,-500.0,0.00016438,2]
[322912810,1713495042886,-1701.26,0.00016438,2]
[322912811,1713495042899,-1080.01,0.00016438,2]
[322912812,1713495042908,-500.0,0.00016438,2]
[322912813,1713495042917,-500.0,0.00016438,2]
[322912814,1713495042927,-500.0,0.00016438,2]
[322912815,1713495042936,-500.0,0.00016438,2]
[322912816,1713495042946,-1159.31,0.00016438,2]
[322912817,1713495042955,-1827.09,0.00016438,2]
[322912818,1713495042964,-500.0,0.00016438,2]
[322912819,1713495042973,-500.0,0.00016438,2]
[322912820,1713495042983,-2318.7,0.00016438,2]
[322912821,1713495042992,-916.0,0.00016438,2]
[322912822,1713495043002,-500.0,0.00016438,2]
[322912823,1713495043013,-1384.98,0.00016438,2]
[322912824,1713495043023,-500.0,0.00016438,2]
[322912825,1713495043032,-500.0,0.00016438,2]
[322912826,1713495043042,-500.0,0.00016438,2]
[322912827,1713495043053,-649.66,0.00016438,2]
[322912828,1713495043062,-500.0,0.00016438,2]
[322912829,1713495043072,-1590.63,0.00016438,2]
[322912830,1713495043082,-743.06,0.00016438,2]
[322912831,1713495043091,-1588.79,0.00016438,2]
[322912832,1713495043101,-500.0,0.00016438,2]
[322912833,1713495043111,-500.0,0.00016438,2]
[322912834,1713495043120,-2137.58,0.00016438,2]
[322912835,1713495043129,-500.0,0.00016438,2]
[322912836,1713495043138,-500.0,0.00016438,2]
[322912837,1713495043151,-500.32,0.00016438,2]
[322912838,1713495043160,-500.0,0.00016438,2]
[322912839,1713495043169,-849.56,0.00016438,2]
[322912840,1713495043178,-500.0,0.00016438,2]
[322912841,1713495043187,-500.0,0.00016438,2]
[322912842,1713495043196,-964.08,0.00016438,2]
[322912843,1713495043205,-1019.91,0.00016438,2]
[322912844,1713495043214,-500.0,0.00016438,2]
[322912845,1713495043223,-1245.86,0.00016438,2]
[322912846,1713495043232,-500.0,0.00016438,2]
[322912847,1713495043241,-500.0,0.00016438,2]
[322912848,1713495043250,-1937.57,0.00016438,2]
[322912849,1713495043260,-567.22,0.00016438,2]
[322912850,1713495043269,-500.0,0.00016438,2]
[322912851,1713495043278,-2064.12,0.00016438,2]
[322912852,1713495043288,-1926.97,0.00016438,2]
[322912853,1713495043298,-584.38,0.00016438,2]
[322912854,1713495043307,-500.0,0.00016438,2]
[322912855,1713495043316,-658.47549456,0.00016438,2]
[322912856,1713495043350,-328.76450544,0.00016438,2]
[322912857,1713495043358,-500.0,0.00016438,2]
[322912859,1713495043368,-977.63,0.00016438,2]
[322912860,1713495043376,-508.53,0.00016438,2]
[322912862,1713495043385,-560.8483945,0.00016438,2]
[322912863,1713495043479,-39.1016055,0.00016438,2]
[322912864,1713495043488,-500.0,0.00016438,2]
[322912865,1713495043497,-970.3,0.00016438,2]
[322912866,1713495043506,-500.0,0.00016438,2]
[322912867,1713495043516,-1308.52,0.00016438,2]
[322912868,1713495043525,-764.95,0.00016438,2]
[322912869,1713495043534,-787.78,0.00016438,2]
[322912870,1713495043543,-500.0,0.00016438,2]
[322912871,1713495043553,-500.0,0.00016438,2]
[322912872,1713495043562,-1227.08,0.00016438,2]
[322912873,1713495043571,-500.0,0.00016438,2]
[322912874,1713495043580,-540.42,0.00016438,2]
[322912875,1713495043590,-500.0,0.00016438,2]
[322912876,1713495043599,-795.78,0.00016438,2]
[322912877,1713495043609,-500.0,0.00016438,2]
[322912878,1713495043619,-700.51,0.00016438,2]
[322912879,1713495043628,-1097.27,0.00016438,2]
[322912880,1713495043637,-296.61047234,0.00016438,2]
[322912881,1713495043676,-800.65952766,0.00016438,2]
[322912882,1713495043685,-1097.27,0.00016438,2]
[322912883,1713495043693,-101.07047234,0.00016438,2]
[322912884,1713495043725,-996.19952766,0.00016438,2]
[322912885,1713495043734,-564.05,0.00016438,2]
[322912886,1713495043743,-1097.27,0.00016438,2]
[322912887,1713495043752,-351.87227234,0.00016438,2]
[322912891,1713495045875,-745.39772766,0.00016438,2]
[322912892,1713495045886,-1097.27,0.00016438,2]
[322912893,1713495045900,-1097.27,0.00016438,2]
[322912894,1713495045910,-500.0,0.00016438,2]
[322912895,1713495045920,-500.0,0.00016438,2]
[322912896,1713495045929,-500.0,0.00016438,2]
[322912897,1713495045939,-500.0,0.00016438,2]
[322912898,1713495045948,-622.38,0.00016438,2]
[322912899,1713495045958,-500.0,0.00016438,2]
[322912900,1713495045968,-500.0,0.00016438,2]
[322912901,1713495045977,-500.0,0.00016438,2]
[322912902,1713495045987,-2329.16,0.00016438,2]
[322912903,1713495045996,-500.0,0.00016438,2]
[322912904,1713495046006,-1454.96,0.00016438,2]
[322912905,1713495046017,-500.0,0.00016438,2]
[322912906,1713495046026,-500.0,0.00016438,2]
[322912907,1713495046035,-472.14235707,0.00016438,2]
[322912908,1713495046045,-500.0,0.00016438,2]
[322912909,1713495046055,-2128.4,0.00016438,2]
[322912910,1713495046065,-500.0,0.00016438,2]
[322912911,1713495046074,-4609.28,0.00016438,2]
[322912912,1713495046086,-2409.46,0.00016438,2]
[322912913,1713495046096,-1212.28,0.00016438,2]
[322912914,1713495046106,-762.6,0.00016438,2]
[322912915,1713495046116,-996.97,0.00016438,2]
[322912916,1713495046125,-672.72,0.00016438,2]
[322912917,1713495046135,-500.0,0.00016438,2]
[322912918,1713495046148,-500.0,0.00016438,2]
[322912919,1713495046157,-500.0,0.00016438,2]
[322912920,1713495046166,-620.51,0.00016438,2]
[322912921,1713495046176,-594.97,0.00016438,2]
[322912922,1713495046185,-628.52,0.00016438,2]
[322912923,1713495046195,-2387.69,0.00016438,2]
[322912924,1713495046205,-1492.41,0.00016438,2]
[322912925,1713495046214,-2039.7,0.00016438,2]
[322912926,1713495046224,-500.0,0.00016438,2]
[322912928,1713495046233,-500.0,0.00016438,2]
[322912930,1713495046243,-500.0,0.00016438,2]
[322912931,1713495046252,-1474.11,0.00016438,2]
[322912933,1713495046261,-776.17,0.00016438,2]
[322912935,1713495046270,-735.5,0.00016438,2]
[322912938,1713495046280,-500.0,0.00016438,2]
[322912939,1713495046289,-500.0,0.00016438,2]
[322912940,1713495046298,-500.0,0.00016438,2]
[322912941,1713495046307,-534.19,0.00016438,2]
[322912942,1713495046317,-500.0,0.00016438,2]
[322912943,1713495046326,-1484.79,0.00016438,2]
[322912944,1713495046335,-5730.78,0.00016438,2]
[322912945,1713495046345,-571.14,0.00016438,2]
[322912946,1713495046354,-610.30898393,0.00016438,2]
[322912947,1713495046363,-1155.71,0.00016438,2]
[322912948,1713495046372,-500.0,0.00016438,2]
[322912949,1713495046381,-500.0,0.00016438,2]
[322912950,1713495046393,-500.0,0.00016438,2]
[322912951,1713495046403,-554.03,0.00016438,2]
[322912952,1713495046412,-500.0,0.00016438,2]
[322912953,1713495046422,-500.0,0.00016438,2]
[322912954,1713495046430,-2466.45,0.00016438,2]
[322912955,1713495046440,-1038.24,0.00016438,2]
[322912956,1713495046449,-805.42,0.00016438,2]
[322912957,1713495046458,-483.31615143,0.00016438,2]
[322912958,1713495046551,-364.03954519,0.00016438,2]
[322912959,1713495046563,-354.66123537,0.00016438,2]
[322912960,1713495046599,-1396.03306801,0.00016438,2]
[322912961,1713495046609,-807.1,0.00016438,2]
[322912962,1713495046618,-1340.73106868,0.00016438,2]
[322912963,1713495047806,-1025.72893132,0.00016438,2]
[322912964,1713495047816,-500.0,0.00016438,2]
[322912965,1713495047827,-1343.07106862,0.00016438,2]
[322912966,1713495047840,-1931.06893138,0.00016438,2]
[322912967,1713495047850,-615.12,0.00016438,2]
[322912968,1713495047860,-500.0,0.00016438,2]
[322912969,1713495047870,-186.60741472,0.00016438,2]
[322912970,1713495047890,-372.05732758,0.00016438,2]
[322912971,1713495047902,-4066.15,0.00016438,2]
[322912972,1713495047911,-500.0,0.00016438,2]
[322912973,1713495047920,-1267.08,0.00016438,2]
[322912974,1713495047929,-500.0,0.00016438,2]
[322912975,1713495047939,-2794.48,0.00016438,2]
[322912976,1713495047949,-500.0,0.00016438,2]
[322912977,1713495047958,-500.0,0.00016438,2]
[322912978,1713495047968,-649.28,0.00016438,2]
[322912979,1713495047977,-1512.8,0.00016438,2]
[322912980,1713495047986,-500.0,0.00016438,2]
[322912981,1713495047996,-1314.72,0.00016438,2]
[322912982,1713495048006,-2261.35,0.00016438,2]
[322912983,1713495048017,-500.0,0.00016438,2]
[322912984,1713495048027,-500.0,0.00016438,2]
[322912985,1713495048037,-1288.04,0.00016438,2]
[322912986,1713495048051,-1088.94,0.00016438,2]
[322912987,1713495048061,-500.46591017,0.00016438,2]
[322912988,1713495048070,-1219.79,0.00016438,2]
[322912989,1713495048081,-1368.45,0.00016438,2]
[322912990,1713495048090,-500.0,0.00016438,2]
[322912991,1713495048100,-500.0,0.00016438,2]
[322912992,1713495048109,-500.0,0.00016438,2]
[322912993,1713495048118,-1000.65,0.00016438,2]
[322912994,1713495048128,-653.07,0.00016438,2]
[322912995,1713495048138,-1140.71,0.00016438,2]
[322912996,1713495048151,-620.92,0.00016438,2]
[322912997,1713495048160,-500.0,0.00016438,2]
[322912998,1713495048170,-500.0,0.00016438,2]
[322912999,1713495048180,-500.0,0.00016438,2]
[322913000,1713495048190,-500.0,0.00016438,2]
[322913001,1713495048199,-1626.27,0.00016438,2]
[322913002,1713495048209,-500.0,0.00016438,2]
[322913003,1713495048218,-1175.12,0.00016438,2]
[322913004,1713495048228,-716.0,0.00016438,2]
[322913005,1713495048237,-700.53,0.00016438,2]
[322913006,1713495048247,-1495.43,0.00016438,2]
[322913007,1713495048257,-500.0,0.00016438,2]
[322913008,1713495048267,-1467.43,0.00016438,2]
[322913009,1713495048277,-500.0,0.00016438,2]
[322913010,1713495048287,-500.0,0.00016438,2]
[322913011,1713495048296,-500.0,0.00016438,2]
[322913012,1713495048305,-500.0,0.00016438,2]
[322913013,1713495048316,-500.0,0.00016438,2]
[322913014,1713495048327,-538.36,0.00016438,2]
[322913015,1713495048338,-616.61,0.00016438,2]
[322913016,1713495048349,-1120.73,0.00016438,2]
[322913017,1713495048361,-500.0,0.00016438,2]
[322913018,1713495048372,-937.19,0.00016438,2]
[322913019,1713495048383,-500.0,0.00016438,2]
[322913020,1713495048401,-334.1803177,0.00016438,2]
[322913021,1713495048421,-165.8196823,0.00016438,2]
[322913022,1713495048433,-500.0,0.00016438,2]
[322913023,1713495048445,-1334.52,0.00016438,2]
[322913024,1713495048456,-500.0,0.00016438,2]
[322913025,1713495048467,-2204.92,0.00016438,2]
[322913026,1713495048479,-500.0,0.00016438,2]
[322913027,1713495048490,-201.9630908,0.00016438,2]
[322913028,1713495097196,596.1,0.00013671,2]
[322913029,1713495243589,500.0,0.00015469,2]
[322913030,1713495327767,163.24,0.00015448,2]
[322913031,1713495376661,3958.43123458,0.000243,30]
[322913032,1713495400145,152.13,0.0001611,15]
[322913034,1713495428132,2634.37,0.00015421,2]
[322913035,1713495454939,561.01,0.00015419,2]
[322913036,1713495471308,177.26,0.00015419,2]
[322913037,1713495542852,504.1,0.00015416,2]
[322913039,1713495696621,566.29,0.0001349,2]
[322913040,1713495705648,6041.5687654,0.000282,120]
[322913041,1713495810052,363.59396722,0.00015502,2]
[322913042,1713495810147,515.5084505,0.00015502,2]
[322913043,1713495848792,155.0,0.00015502,2]
[322913047,1713496117214,-532.89332388,0.00015505,2]
[322913049,1713496117241,-729.77512043,0.00015506,2]
[322913051,1713496117270,-167.82,0.00015508,2]
[322913052,1713496117295,-495.9,0.00015621,2]
[322913054,1713496117320,-389.82266942,0.00015753,2]
[322913055,1713496117369,-176.46733058,0.00015753,2]
[322913056,1713496117394,-1250.0,0.00016,2]
[322913057,1713496117418,-889.74378315,0.00016,2]
[322913058,1713496118328,-2316.21111373,0.00016,2]
[322913059,1713496118382,-2316.21111373,0.00016,2]
[322913060,1713496118435,-2316.21111373,0.00016,2]
[322913061,1713496118471,-2316.21111373,0.00016,2]
[322913062,1713496118524,-2316.21111373,0.00016,2]
[322913063,1713496118574,-132.06434792,0.00016,2]
[322913064,1713496118604,-150.0,0.00016113,2]
[322913065,1713496118633,-69.75968268,0.00016115,2]
[322913066,1713496118691,-2316.21111373,0.00016115,2]
[322913070,1713496143789,596.72,0.00015484,2]
[322913074,1713496178870,509.66,0.00013543,2]
[322913091,1713496232425,-509.66,0.00015807,2]
[322913093,1713496232435,-150.34,0.00016115,2]
[322913095,1713496232458,-433.66532984,0.00016115,2]
[322913096,1713496232471,-706.63187375,0.00016115,2]
[322913097,1713496232480,-592.78897075,0.00016184,2]
[322913098,1713496232555,-2740.10803143,0.00016184,2]
[322913099,1713496232566,-2589.75849578,0.00016184,2]
[322913123,1713496238052,-6680.20820176,0.00016184,2]
[322913126,1713496238062,-3732.089,0.00016185,2]
[322913129,1713496238071,-3701.698,0.0001621,2]
[322913132,1713496238081,-59172.3954,0.00016212,2]
[322913135,1713496238091,-812.22856,0.0001627,2]
[322913137,1713496238106,-1142.52,0.000163,2]
[322913139,1713496238115,-200.0,0.00016307,2]
[322913141,1713496238126,-200.0,0.00016307,2]
[322913143,1713496238136,-500.0,0.00016307,2]
[322913144,1713496238148,-150.0,0.00016316,2]
[322913145,1713496238158,-181.04995257,0.00016338,2]
[322913146,1713496238168,-24942.31550825,0.00016338,2]
[322913147,1713496238177,-614.67144931,0.00016338,2]
[322913148,1713496238187,-237.55296962,0.00016338,2]
[322913149,1713496238196,-8338.9108,0.00016338,2]
[322913150,1713496238206,-20000.0,0.000164,2]
[322913151,1713496238215,-1218672.02553711,0.000164,2]
[322913152,1713496238255,-490.1733676,0.000164,2]
[322913153,1713496238266,-533.59520094,0.000164,2]
[322913154,1713496238315,-61335.21385812,0.000164,2]
[322913171,1713496238699,-1837.28017772,0.000164,2]
[322913173,1713496238710,-24533.53192373,0.000164,2]
[322913177,1713496238735,-3023.53156019,0.000164,2]
[322913179,1713496238747,-61500.07924695,0.000164,2]
[322913181,1713496238758,-1027.72764679,0.000164,2]
[322913187,1713496238803,-6157.8,0.000164,2]
[322913189,1713496238815,-1394.84837515,0.000164,2]
[322913252,1713496240122,-961.51875694,0.000164,2]
[322913257,1713496240133,-3096.18912661,0.000164,2]
[322913357,1713496241434,-589.6593071,0.000164,2]
[322913358,1713496241446,-3979.91665578,0.000164,2]
[322913359,1713496241458,-1477.04066227,0.000164,2]
[322913360,1713496241470,-640.46480657,0.000164,2]
[322913361,1713496241512,-59324.28659243,0.000164,2]
[322913362,1713496241521,-1633.0,0.000164,2]
[322913363,1713496241531,-482.0,0.000164,2]
[322913364,1713496241541,-507.48504687,0.0001642,4]
[322913365,1713496241550,-185.19,0.00016426,3]
[322913366,1713496241559,-555.57,0.00016426,3]
[322913367,1713496241568,-157.86285769,0.00016428,2]
[322913368,1713496241578,-157.86285769,0.00016428,2]
[322913369,1713496241587,-157.86285769,0.00016428,2]
[322913370,1713496241596,-3600.9281077,0.00016429,2]
[322913371,1713496241610,-2537.2965407,0.00016429,2]
[322913372,1713496241619,-8715.4900207,0.0001643,2]
[322913373,1713496241629,-210.51163216,0.00016436,2]
[322913374,1713496241638,-191.30242376,0.00016436,2]
[322913375,1713496241648,-247.18464819,0.00016436,2]
[322913376,1713496241657,-27179.66786014,0.00016437,2]
[322913377,1713496241667,-1833.35916222,0.00016437,2]
[322913378,1713496241677,-1472.59770495,0.00016437,2]
[322913379,1713496241686,-976.0,0.00016438,2]
[322913380,1713496241696,-500.0,0.00016438,2]
[322913381,1713496241706,-500.0,0.00016438,2]
[322913382,1713496241716,-500.0,0.00016438,2]
[322913383,1713496241726,-500.0,0.00016438,2]
[322913384,1713496241735,-500.0,0.00016438,2]
[322913385,1713496241745,-500.0,0.00016438,2]
[322913386,1713496241754,-229.79107024,0.00016438,2]
[322913387,1713496241763,-500.0,0.00016438,2]
[322913388,1713496241772,-500.0,0.00016438,2]
[322913389,1713496241781,-500.50893505,0.00016438,2]
[322913390,1713496241791,-500.0,0.00016438,2]
[322913391,1713496241800,-500.0,0.00016438,2]
[322913392,1713496241810,-500.0,0.00016438,2]
[322913393,1713496241819,-500.0,0.00016438,2]
[322913394,1713496241828,-500.0,0.00016438,2]
[322913395,1713496241837,-500.0,0.00016438,2]
[322913396,1713496241851,-500.0,0.00016438,2]
[322913397,1713496241863,-500.0,0.00016438,2]
[322913398,1713496241872,-500.0,0.00016438,2]
[322913399,1713496241881,-500.0,0.00016438,2]
[322913400,1713496241891,-500.0,0.00016438,2]
[322913401,1713496241900,-500.0,0.00016438,2]
[322913402,1713496241916,-500.0,0.00016438,2]
[322913403,1713496241925,-500.0,0.00016438,2]
[322913404,1713496241935,-500.0,0.00016438,2]
[322913405,1713496241944,-387.91155433,0.00016438,2]
[322913406,1713496241954,-500.0,0.00016438,2]
[322913407,1713496241965,-500.0,0.00016438,2]
[322913408,1713496241974,-500.0,0.00016438,2]
[322913409,1713496241984,-500.0,0.00016438,2]
[322913410,1713496241994,-500.0,0.00016438,2]
[322913411,1713496242003,-500.0,0.00016438,2]
[322913412,1713496242013,-500.0,0.00016438,2]
[322913413,1713496242022,-500.0,0.00016438,2]
[322913414,1713496242031,-500.0,0.00016438,2]
[322913415,1713496242040,-500.0,0.00016438,2]
[322913416,1713496242049,-500.0,0.00016438,2]
[322913417,1713496242058,-500.0,0.00016438,2]
[322913418,1713496242067,-500.0,0.00016438,2]
[322913419,1713496242077,-500.0,0.00016438,2]
[322913420,1713496242086,-500.0,0.00016438,2]
[322913421,1713496242096,-1473.05,0.00016438,2]
[322913422,1713496242114,-500.0,0.00016438,2]
[322913423,1713496242123,-500.0,0.00016438,2]
[322913424,1713496242133,-500.0,0.00016438,2]
[322913425,1713496242142,-500.0,0.00016438,2]
[322913426,1713496242151,-500.0,0.00016438,2]
[322913427,1713496242160,-500.0,0.00016438,2]
[322913428,1713496242169,-701.8,0.00016438,2]
[322913429,1713496242178,-500.0,0.00016438,2]
[322913430,1713496242188,-184.78389455,0.00016438,2]
[322913431,1713496242198,-500.0,0.00016438,2]
[322913432,1713496242207,-2739.64,0.00016438,2]
[322913433,1713496242216,-1122.76,0.00016438,2]
[322913434,1713496242226,-500.0,0.00016438,2]
[322913435,1713496242235,-500.0,0.00016438,2]
[322913436,1713496242244,-500.0,0.00016438,2]
[322913437,1713496242254,-426.90063083,0.00016438,2]
[322913438,1713496242263,-2855.42,0.00016438,2]
[322913439,1713496242273,-500.0,0.00016438,2]
[322913440,1713496242283,-2026.53,0.00016438,2]
[322913441,1713496242292,-284.0,0.00016438,2]
[322913442,1713496242302,-500.0,0.00016438,2]
[322913443,1713496242312,-1423.33,0.00016438,2]
[322913444,1713496242321,-500.0,0.00016438,2]
[322913445,1713496242331,-500.0,0.00016438,2]
[322913446,1713496242340,-500.0,0.00016438,2]
[322913447,1713496242354,-500.0,0.00016438,2]
[322913448,1713496242363,-707.44,0.00016438,2]
[322913449,1713496242373,-854.16,0.00016438,2]
[322913450,1713496242383,-500.0,0.00016438,2]
[322913451,1713496242393,-500.0,0.00016438,2]
[322913452,1713496242402,-1085.5,0.00016438,2]
[322913453,1713496242411,-500.0,0.00016438,2]
[322913454,1713496242421,-514.01,0.00016438,2]
[322913455,1713496242431,-185.32218898,0.00016438,2]
[322913456,1713496242440,-500.0,0.00016438,2]